[Event "Masterklassen 2025"]
[Site "Uppsala, Sweden"]
[Date "2025.06.28"]
[Round "1.11"]
[White "Wakeham, Daniel"]
[Black "Stanley, Mikael"]
[Result "0-1"]
[TimeControl "90 min for 40 move + 30 min with an increment of 30 sec starting move 1"]
[WhiteFideId "1705482"]
[BlackFideId "1703730"]
[WhiteElo "2045"]
[BlackElo "2150"]

1. d4 {[%clk 01:30:57]} {[%emt 00:00:03]} Nf6 {[%clk 01:30:43]} {[%emt
00:00:18]} 2. c4 {[%clk 01:31:08]} {[%emt 00:00:18]} g6 {[%clk 01:29:54]}
{[%emt 00:01:19]} 3. Nc3 {[%clk 01:31:06]} {[%emt 00:00:31]} Bg7 {[%clk
01:30:13]} {[%emt 00:00:12]} 4. e4 {[%clk 01:31:25]} {[%emt 00:00:11]} O-O
{[%clk 01:30:03]} {[%emt 00:00:40]} 5. h3 {[%clk 01:31:17]} {[%emt 00:00:38]}
d6 {[%clk 01:29:51]} {[%emt 00:00:43]} 6. Be3 {[%emt 00:05:38]} c5 {[%clk
01:24:58]} 7. Nf3 {[%clk 01:31:22]} {[%emt 00:00:39]} cxd4 {[%clk 01:23:37]}
{[%emt 00:01:52]} 8. Nxd4 {[%clk 01:31:35]} {[%emt 00:00:16]} Nc6 {[%clk
01:23:34]} {[%emt 00:00:34]} 9. Be2 {[%clk 01:31:46]} {[%emt 00:00:18]} Bd7
{[%clk 01:20:18]} {[%emt 00:03:46]} 10. O-O {[%clk 01:31:23]} {[%emt 00:00:53]}
Nxd4 {[%clk 01:18:47]} {[%emt 00:02:01]} 11. Bxd4 {[%clk 01:31:45]} {[%emt
00:00:07]} Bc6 {[%clk 01:18:57]} {[%emt 00:00:22]} 12. Qc2 {[%clk 01:30:59]}
{[%emt 00:01:15]} Rc8 {[%clk 01:16:01]} {[%emt 00:03:27]} 13. Rfd1 {[%clk
01:16:16]} {[%emt 00:15:13]} Qc7 {[%clk 01:14:01]} {[%emt 00:02:29]} 14. Nd5
{[%clk 00:59:31]} {[%emt 00:17:14]} Bxd5 {[%clk 01:12:50]} {[%emt 00:01:42]} 15.
exd5 {[%clk 00:59:52]} {[%emt 00:00:09]} b5 {[%clk 01:10:28]} {[%emt 00:02:53]}
16. c5 {[%clk 00:54:07]} {[%emt 00:06:15]} dxc5 {[%clk 01:07:16]} {[%emt
00:03:42]} 17. Bxf6 {[%clk 00:53:58]} {[%emt 00:00:38]} Bxf6 {[%clk 01:07:34]}
{[%emt 00:00:12]} 18. Bxb5 {[%clk 00:54:20]} {[%emt 00:00:09]} Rb8 {[%clk
01:00:00]} {[%emt 00:08:04]} 19. Qc4 {[%clk 00:30:42]} {[%emt 00:24:07]} Qa5
{[%clk 00:47:37]} {[%emt 00:12:54]} 20. a4 {[%clk 00:29:00]} {[%emt 00:02:11]}
a6 {[%clk 00:45:54]} {[%emt 00:02:15]} 21. Bxa6 {[%clk 00:21:11]} {[%emt
00:08:18]} Rb4 {[%clk 00:43:21]} {[%emt 00:03:03]} 22. Qd3 {[%clk 00:20:58]}
{[%emt 00:00:42]} Bxb2 {[%clk 00:38:53]} {[%emt 00:04:58]} 23. Ra2 {[%clk
00:19:56]} {[%emt 00:01:32]} Bd4 {[%clk 00:36:32]} {[%emt 00:02:51]} 24. Bb5
{[%clk 00:18:47]} {[%emt 00:01:40]} Rd8 {[%clk 00:34:04]} {[%emt 00:02:58]} 25.
Bc6 {[%clk 00:15:20]} {[%emt 00:03:57]} Rd6 {[%clk 00:26:29]} {[%emt 00:08:04]}
26. Re2 {[%clk 00:13:19]} {[%emt 00:02:31]} Rf6 {[%clk 00:21:48]} {[%emt
00:05:11]} 27. Kf1 {[%clk 00:08:45]} {[%emt 00:05:04]} Qc7 {[%clk 00:20:49]}
{[%emt 00:01:29]} 28. g3 {[%clk 00:06:59]} {[%emt 00:02:16]} e5 {[%clk
00:19:20]} {[%emt 00:02:00]} 29. Kg2 {[%clk 00:04:48]} {[%emt 00:02:40]} c4
{[%clk 00:17:54]} {[%emt 00:01:57]} 30. Qa3 {[%clk 00:03:19]} {[%emt 00:01:59]}
Rb3 {[%clk 00:15:39]} {[%emt 00:02:44]} 31. Qc1 {[%clk 00:02:38]} {[%emt
00:01:11]} Rxc6 {[%clk 00:09:40]} {[%emt 00:06:30]} 32. dxc6 {[%clk 00:01:58]}
{[%emt 00:01:09]} Qxc6+ {[%clk 00:10:07]} {[%emt 00:00:02]} 33. Kh2 {[%clk
00:01:53]} {[%emt 00:00:36]} Rf3 {[%clk 00:09:34]} {[%emt 00:01:03]} 34. Qc2
{[%clk 00:01:22]} {[%emt 00:01:01]} Rc3 {[%clk 00:07:36]} {[%emt 00:02:27]} 35.
Qa2 {[%clk 00:01:16]} {[%emt 00:00:38]} Qf3 {[%clk 00:07:16]} {[%emt 00:00:49]}
36. Rg1 {[%clk 00:01:12]} {[%emt 00:00:35]} e4 {[%clk 00:06:05]} {[%emt
00:01:40]} 37. Rc2 {[%clk 00:01:01]} {[%emt 00:00:41]} Rxc2 {[%clk 00:04:09]}
{[%emt 00:02:26]} 38. Qxc2 {[%clk 00:01:30]} {[%emt 00:00:02]} Bxf2 {[%clk
00:04:07]} {[%emt 00:00:32]} 39. Rg2 {[%clk 00:00:39]} {[%emt 00:01:21]} e3
{[%clk 00:04:23]} {[%emt 00:00:14]} 40. Qc3 {[%clk 00:00:36]} {[%emt 00:00:32]}
Qe4 {[%clk 00:03:01]} {[%emt 00:01:52]} 41. Qf6 {[%clk 00:28:49]} {[%emt
00:02:17]} c3 {[%clk 00:21:37]} {[%emt 00:11:55]} 42. Qd8+ {[%clk 00:17:29]}
{[%emt 00:11:49]} Kg7 {[%clk 00:21:45]} {[%emt 00:00:23]} 43. Qc7 {[%clk
00:17:52]} {[%emt 00:00:06]} Qd4 {[%clk 00:18:18]} {[%emt 00:03:57]} 44. Rxf2
{[%clk 00:14:42]} {[%emt 00:03:40]} exf2 {[%clk 00:18:29]} {[%emt 00:00:19]} 45.
Kg2 {[%clk 00:15:00]} {[%emt 00:00:12]} Qe3 {[%clk 00:14:12]} {[%emt 00:04:48]}
46. Qc4 {[%clk 00:15:00]} {[%emt 00:00:29]} Qe1 {[%clk 00:11:48]} {[%emt
00:02:54]} 47. Qd4+ {[%clk 00:14:31]} {[%emt 00:00:59]} f6 {[%clk 00:12:16]}
{[%emt 00:00:02]} 0-1

[Event "Masterklassen 2025"]
[Site "Uppsala, Sweden"]
[Date "2025.06.28"]
[Round "1.12"]
[White "Muntean, Victor"]
[Black "Johansson, William"]
[Result "1/2-1/2"]
[TimeControl "90 min for 40 move + 30 min with an increment of 30 sec starting move 1"]
[WhiteFideId "1054414"]
[BlackFideId "1744070"]
[WhiteElo "2140"]
[BlackElo "2026"]

1. e4 {[%clk 01:30:58]} c6 {[%clk 01:30:43]} {[%emt 00:00:17]} 2. d4 {[%clk
01:31:23]} {[%emt 00:00:06]} d5 {[%clk 01:31:08]} {[%emt 00:00:04]} 3. exd5
{[%clk 01:31:48]} {[%emt 00:00:05]} cxd5 {[%clk 01:31:34]} {[%emt 00:00:05]} 4.
Bd3 {[%clk 01:32:14]} {[%emt 00:00:05]} Nc6 {[%clk 01:31:52]} {[%emt 00:00:12]}
5. c3 {[%clk 01:32:38]} {[%emt 00:00:05]} Nf6 {[%clk 01:32:10]} {[%emt
00:00:12]} 6. h3 {[%clk 01:33:03]} {[%emt 00:00:05]} g6 {[%clk 01:32:26]}
{[%emt 00:00:13]} 7. Nf3 {[%clk 01:33:26]} {[%emt 00:00:08]} Bf5 {[%clk
01:32:42]} {[%emt 00:00:14]} 8. Be2 {[%clk 01:33:49]} {[%emt 00:00:06]} Bg7
{[%clk 01:32:45]} {[%emt 00:00:27]} 9. Bf4 {[%clk 01:31:42]} {[%emt 00:02:38]}
O-O {[%clk 01:28:58]} {[%emt 00:04:17]} 10. Nbd2 {[%clk 01:28:52]} {[%emt
00:03:20]} Re8 {[%clk 01:26:54]} {[%emt 00:02:34]} 11. Ne5 {[%clk 01:24:30]}
{[%emt 00:04:53]} Nd7 {[%clk 01:09:34]} {[%emt 00:17:49]} 12. g4 {[%clk
01:19:01]} {[%emt 00:05:59]} Be6 {[%clk 01:09:50]} {[%emt 00:00:14]} 13. Nxc6
{[%clk 01:13:24]} {[%emt 00:06:07]} bxc6 {[%clk 01:10:03]} {[%emt 00:00:16]} 14.
Nb3 {[%clk 01:13:33]} {[%emt 00:00:22]} Qb6 {[%clk 01:07:21]} {[%emt 00:03:11]}
15. Qd2 {[%clk 01:09:55]} {[%emt 00:04:10]} a5 {[%clk 01:01:40]} {[%emt
00:06:10]} 16. h4 {[%clk 00:51:42]} {[%emt 00:18:42]} a4 {[%clk 00:58:04]}
{[%emt 00:04:07]} 17. Nc1 {[%clk 00:52:02]} {[%emt 00:00:10]} c5 {[%clk
00:53:56]} {[%emt 00:04:38]} 18. Nd3 {[%clk 00:38:56]} {[%emt 00:13:36]} cxd4
{[%clk 00:51:31]} {[%emt 00:02:56]} 19. cxd4 {[%clk 00:38:44]} {[%emt
00:00:42]} Bxd4 {[%clk 00:49:39]} {[%emt 00:02:21]} 20. a3 {[%clk 00:26:03]}
{[%emt 00:13:11]} Rec8 {[%clk 00:41:13]} {[%emt 00:08:56]} 21. Rd1 {[%clk
00:22:10]} {[%emt 00:04:22]} Nc5 {[%clk 00:37:25]} {[%emt 00:04:18]} 22. Nxc5
{[%clk 00:20:32]} {[%emt 00:02:09]} Bxc5 {[%clk 00:37:42]} {[%emt 00:00:13]} 23.
h5 {[%clk 00:17:06]} {[%emt 00:03:56]} Qa5 {[%clk 00:31:13]} {[%emt 00:06:59]}
24. hxg6 {[%clk 00:16:38]} {[%emt 00:00:58]} Qxd2+ {[%clk 00:26:58]} {[%emt
00:04:45]} 25. Bxd2 {[%clk 00:16:51]} {[%emt 00:00:17]} hxg6 {[%clk 00:21:10]}
{[%emt 00:06:18]} 26. Bc3 {[%clk 00:16:49]} {[%emt 00:00:32]} f6 {[%clk
00:21:23]} {[%emt 00:00:17]} 27. g5 {[%clk 00:16:16]} {[%emt 00:01:03]} Kg7
{[%clk 00:20:31]} {[%emt 00:01:22]} 28. Rh4 {[%clk 00:15:26]} {[%emt 00:01:20]}
Bd6 {[%clk 00:13:17]} {[%emt 00:07:44]} 29. Bf3 {[%clk 00:14:04]} {[%emt
00:01:52]} Rc5 {[%clk 00:11:44]} {[%emt 00:02:03]} 30. gxf6+ {[%clk 00:13:57]}
{[%emt 00:00:38]} exf6 {[%clk 00:12:12]} 31. Bb4 {[%clk 00:14:17]} {[%emt
00:00:10]} Rc6 {[%clk 00:11:52]} {[%emt 00:00:50]} 32. Bxd5 {[%clk 00:14:02]}
{[%emt 00:00:44]} Bxd5 {[%clk 00:12:13]} {[%emt 00:00:10]} 33. Rxd5 {[%clk
00:14:29]} {[%emt 00:00:02]} g5 {[%clk 00:11:34]} {[%emt 00:01:10]} 34. Re4
{[%clk 00:13:57]} {[%emt 00:01:02]} Be5 {[%clk 00:11:28]} {[%emt 00:00:36]} 35.
Rexe5 {[%clk 00:10:27]} {[%emt 00:04:00]} fxe5 {[%clk 00:11:47]} {[%emt
00:00:10]} 36. Rxe5 {[%clk 00:10:50]} {[%emt 00:00:07]} Kf6 {[%clk 00:11:10]}
{[%emt 00:01:07]} 37. Rb5 {[%clk 00:11:05]} {[%emt 00:00:15]} g4 {[%clk
00:07:14]} {[%emt 00:04:27]} 38. Bc3+ {[%clk 00:11:00]} {[%emt 00:00:35]} Kg6
{[%clk 00:06:56]} {[%emt 00:00:44]} 39. Kf1 {[%emt 00:02:42]} Rc4 {[%clk
00:05:49]} 40. Rb6+ {[%clk 00:09:40]} {[%emt 00:01:19]} Kg5 {[%clk 00:06:03]}
{[%emt 00:00:15]} 41. Kg2 {[%clk 00:09:37]} {[%emt 00:00:33]} Rf8 {[%clk
00:04:14]} {[%emt 00:02:19]} 42. Rb5+ {[%clk 00:03:22]} {[%emt 00:06:47]} Kf4
{[%clk 00:02:33]} {[%emt 00:02:10]} 43. Bb4 {[%clk 00:02:37]} {[%emt 00:01:14]}
Ra8 {[%clk 00:30:05]} {[%emt 00:02:58]} 44. Bd6+ {[%clk 00:32:42]} {[%emt
00:00:25]} Ke4 {[%clk 00:30:20]} {[%emt 00:00:15]} 45. Rg5 {[%clk 00:31:26]}
{[%emt 00:01:46]} Kd3 {[%clk 00:30:35]} {[%emt 00:00:16]} 46. Kg3 {[%clk
00:31:23]} {[%emt 00:00:33]} Rd8 {[%clk 00:28:26]} {[%emt 00:02:38]} 47. Be7
{[%clk 00:21:18]} {[%emt 00:10:36]} Re8 {[%clk 00:26:05]} {[%emt 00:02:50]} 48.
Rd5+ {[%clk 00:19:58]} {[%emt 00:01:51]} Kc2 {[%clk 00:26:03]} {[%emt
00:00:31]} 49. Bf6 {[%clk 00:20:02]} {[%emt 00:00:26]} Rb8 {[%clk 00:24:57]}
{[%emt 00:01:37]} 50. Re5 {[%clk 00:11:33]} {[%emt 00:08:59]} Rb3+ {[%clk
00:24:46]} {[%emt 00:00:41]} 51. Kg2 {[%clk 00:11:12]} {[%emt 00:00:51]} Kb1
{[%clk 00:24:32]} {[%emt 00:00:43]} 52. Re1+ {[%clk 00:11:10]} {[%emt
00:00:31]} Rc1 {[%clk 00:24:05]} {[%emt 00:00:58]} 53. Re4 {[%clk 00:11:19]}
{[%emt 00:00:22]} Rc6 {[%clk 00:22:08]} {[%emt 00:02:27]} 54. Bc3 {[%clk
00:10:22]} {[%emt 00:01:27]} Rcxc3 {[%clk 00:21:29]} {[%emt 00:01:09]} 55. bxc3
{[%clk 00:10:40]} {[%emt 00:00:12]} Rxa3 {[%clk 00:21:52]} {[%emt 00:00:07]} 56.
Rxg4 {[%clk 00:10:09]} {[%emt 00:01:01]} Kb2 {[%clk 00:21:53]} {[%emt
00:00:28]} 57. Rc4 {[%clk 00:07:57]} {[%emt 00:02:42]} Ra2 {[%clk 00:21:17]}
{[%emt 00:01:07]} 58. Kg3 {[%clk 00:07:26]} {[%emt 00:01:01]} a3 {[%clk
00:21:13]} {[%emt 00:00:34]} 59. Rc8 {[%clk 00:07:38]} {[%emt 00:00:18]} Ra1
{[%clk 00:21:14]} {[%emt 00:00:30]} 60. c4 {[%clk 00:06:20]} {[%emt 00:01:47]}
Rg1+ {[%clk 00:21:08]} {[%emt 00:00:36]} 61. Kf4 {[%clk 00:06:39]} {[%emt
00:00:11]} a2 {[%clk 00:20:15]} {[%emt 00:01:23]} 62. Ra8 {[%clk 00:07:01]}
{[%emt 00:00:08]} Rc1 {[%clk 00:19:21]} {[%emt 00:01:24]} 63. Rxa2+ {[%clk
00:07:12]} {[%emt 00:00:19]} Kxa2 {[%clk 00:19:47]} {[%emt 00:00:04]} 64. Ke5
{[%clk 00:07:35]} {[%emt 00:00:06]} Kb3 {[%clk 00:20:03]} {[%emt 00:00:14]} 65.
f4 {[%clk 00:07:39]} {[%emt 00:00:27]} Kxc4 {[%clk 00:20:21]} {[%emt 00:00:12]}
66. f5 {[%clk 00:08:05]} {[%emt 00:00:04]} Re1+ {[%clk 00:20:24]} {[%emt
00:00:26]} 67. Kd6 {[%clk 00:08:17]} {[%emt 00:00:18]} Rf1 {[%clk 00:17:58]}
{[%emt 00:02:57]} 68. Ke6 {[%clk 00:08:40]} {[%emt 00:00:07]} Ra1 {[%clk
00:17:07]} {[%emt 00:01:21]} 69. f6 {[%clk 00:08:49]} {[%emt 00:00:21]} Ra6+
{[%clk 00:17:10]} {[%emt 00:00:27]} 70. Ke5 {[%clk 00:09:01]} {[%emt 00:00:18]}
Ra7 {[%clk 00:17:05]} {[%emt 00:00:35]} 71. Ke6 {[%clk 00:09:25]} {[%emt
00:00:06]} Ra6+ {[%clk 00:17:29]} {[%emt 00:00:06]} 72. Ke5 {[%clk 00:09:50]}
{[%emt 00:00:05]} Ra7 {[%clk 00:17:47]} {[%emt 00:00:12]} 1/2-1/2

[Event "Masterklassen 2025"]
[Site "Uppsala, Sweden"]
[Date "2025.06.28"]
[Round "1.13"]
[White "Granath, Jonas"]
[Black "Hagevi, Vidar"]
[Result "1/2-1/2"]
[TimeControl "90 min for 40 move + 30 min with an increment of 30 sec starting move 1"]
[WhiteFideId "1761013"]
[BlackFideId "1767526"]
[WhiteElo "2008"]
[BlackElo "2139"]

1. e4 {[%clk 01:30:55]} {[%emt 00:00:04]} c5 {[%clk 01:30:50]} {[%emt
00:00:10]} 2. c3 {[%clk 01:31:11]} {[%emt 00:00:14]} Nf6 {[%clk 01:31:12]}
{[%emt 00:00:07]} 3. e5 {[%clk 01:31:30]} {[%emt 00:00:12]} Nd5 {[%clk
01:31:35]} {[%emt 00:00:07]} 4. d4 {[%clk 01:31:51]} {[%emt 00:00:08]} cxd4
{[%clk 01:31:55]} {[%emt 00:00:10]} 5. cxd4 {[%clk 01:32:16]} {[%emt 00:00:06]}
d6 {[%clk 01:32:09]} {[%emt 00:00:16]} 6. Nf3 {[%clk 01:32:39]} {[%emt
00:00:07]} e6 {[%clk 01:32:17]} {[%emt 00:00:23]} 7. Bc4 {[%clk 01:31:58]}
{[%emt 00:01:11]} Be7 {[%clk 01:32:31]} {[%emt 00:00:14]} 8. O-O {[%clk
01:31:37]} {[%emt 00:00:51]} O-O {[%clk 01:32:38]} {[%emt 00:00:24]} 9. Qe2
{[%clk 01:30:05]} {[%emt 00:02:02]} dxe5 {[%clk 01:30:02]} {[%emt 00:03:06]} 10.
dxe5 {[%clk 01:28:09]} {[%emt 00:02:26]} Bd7 {[%clk 01:30:12]} {[%emt
00:00:20]} 11. Qe4 {[%clk 01:17:23]} {[%emt 00:11:16]} Bc6 {[%clk 01:27:32]}
{[%emt 00:03:11]} 12. Qg4 {[%clk 01:16:00]} {[%emt 00:01:52]} Kh8 {[%clk
01:16:43]} {[%emt 00:11:19]} 13. Nbd2 {[%clk 01:07:30]} {[%emt 00:09:00]} Nd7
{[%clk 01:06:50]} {[%emt 00:10:23]} 14. Ne4 {[%clk 01:01:41]} {[%emt 00:06:19]}
N5b6 {[%clk 00:56:18]} {[%emt 00:11:02]} 15. Bd3 {[%clk 00:36:23]} {[%emt
00:25:48]} Nc5 {[%clk 00:40:08]} {[%emt 00:16:40]} 16. Nxc5 {[%clk 00:28:58]}
{[%emt 00:07:55]} Bxc5 {[%clk 00:40:14]} {[%emt 00:00:24]} 17. Rd1 {[%clk
00:24:21]} {[%emt 00:05:07]} Bxf3 {[%clk 00:21:18]} {[%emt 00:19:26]} 18. Qxf3
{[%clk 00:24:05]} {[%emt 00:00:46]} Qd5 {[%clk 00:19:01]} {[%emt 00:02:47]} 19.
Qh3 {[%clk 00:08:12]} {[%emt 00:16:22]} g6 {[%clk 00:09:47]} {[%emt 00:09:46]}
20. Bf4 {[%clk 00:04:30]} {[%emt 00:04:11]} Rfd8 {[%clk 00:07:47]} {[%emt
00:02:29]} 21. Qh4 {[%clk 00:01:11]} {[%emt 00:03:50]} Bd4 {[%clk 00:02:45]}
{[%emt 00:05:32]} 22. Rac1 {[%clk 00:00:37]} {[%emt 00:01:04]} Bxe5 {[%clk
00:02:52]} {[%emt 00:00:23]} 23. Be2 {[%clk 00:00:42]} {[%emt 00:00:25]} Bxf4
{[%clk 00:01:10]} {[%emt 00:02:12]} 24. Rxd5 {[%clk 00:01:07]} {[%emt
00:00:05]} Nxd5 {[%clk 00:01:32]} {[%emt 00:00:08]} 25. Rd1 {[%clk 00:01:29]}
{[%emt 00:00:08]} Bc7 {[%clk 00:00:44]} {[%emt 00:01:19]} 26. g3 {[%clk
00:01:40]} {[%emt 00:00:19]} Bb6 {[%clk 00:00:50]} {[%emt 00:00:23]} 27. Bf3
{[%clk 00:01:48]} {[%emt 00:00:21]} Rac8 {[%clk 00:00:38]} {[%emt 00:00:43]} 28.
Bxd5 {[%clk 00:01:57]} {[%emt 00:00:20]} exd5 {[%clk 00:00:57]} {[%emt
00:00:12]} 29. Qe7 {[%clk 00:02:05]} {[%emt 00:00:23]} d4 {[%clk 00:00:52]}
{[%emt 00:00:34]} 30. Qxf7 {[%clk 00:00:54]} {[%emt 00:01:41]} Rf8 {[%clk
00:00:46]} {[%emt 00:00:36]} 31. Qd5 {[%clk 00:01:09]} {[%emt 00:00:15]} Rf5
{[%clk 00:00:46]} {[%emt 00:00:30]} 32. Qd7 {[%clk 00:00:48]} {[%emt 00:00:51]}
Rcf8 {[%clk 00:00:58]} {[%emt 00:00:17]} 33. Rd2 {[%clk 00:00:51]} {[%emt
00:00:28]} d3 {[%clk 00:00:40]} {[%emt 00:00:48]} 34. Kg2 {[%clk 00:00:39]}
{[%emt 00:00:42]} Rxf2+ {[%clk 00:00:36]} {[%emt 00:00:34]} 35. Rxf2 {[%clk
00:01:07]} {[%emt 00:00:02]} Rxf2+ {[%clk 00:00:58]} {[%emt 00:00:08]} 36. Kh3
{[%clk 00:01:31]} {[%emt 00:00:06]} d2 {[%clk 00:00:56]} {[%emt 00:00:32]} 37.
Qe8+ {[%clk 00:01:45]} {[%emt 00:00:16]} Kg7 {[%clk 00:01:16]} {[%emt
00:00:10]} 38. Qe7+ {[%clk 00:01:53]} {[%emt 00:00:22]} Kg8 {[%clk 00:00:40]}
{[%emt 00:01:06]} 39. Qe8+ {[%clk 00:02:00]} {[%emt 00:00:24]} Kg7 {[%clk
00:00:45]} {[%emt 00:00:25]} 40. Qe7+ {[%clk 00:02:21]} {[%emt 00:00:08]} Kg8
{[%clk 00:00:45]} {[%emt 00:00:30]} 41. Qe8+ {[%clk 00:00:31]} {[%emt
00:02:20]} Kg7 {[%clk 00:15:15]} {[%emt 00:16:00]} 1/2-1/2

[Event "Masterklassen 2025"]
[Site "Uppsala, Sweden"]
[Date "2025.06.28"]
[Round "1.14"]
[White "Mashhadi, Peyman"]
[Black "Malm, Simon"]
[Result "0-1"]
[TimeControl "90 min for 40 move + 30 min with an increment of 30 sec starting move 1"]
[WhiteFideId "1768581"]
[BlackFideId "1759825"]
[WhiteElo "2132"]
[BlackElo "2007"]

1. e4 {[%clk 01:30:39]} {[%emt 00:00:20]} c6 {[%clk 01:30:15]} {[%emt
00:00:45]} 2. d4 {[%clk 01:28:07]} {[%emt 00:03:02]} d5 {[%clk 01:30:39]}
{[%emt 00:00:06]} 3. e5 {[%clk 01:28:32]} {[%emt 00:00:06]} c5 {[%clk
01:30:22]} {[%emt 00:00:46]} 4. dxc5 {[%clk 01:28:35]} {[%emt 00:00:27]} e6
{[%clk 01:30:42]} {[%emt 00:00:10]} 5. Be3 {[%clk 01:27:55]} {[%emt 00:01:10]}
Nd7 {[%clk 01:30:53]} {[%emt 00:00:20]} 6. b4 {[%clk 01:26:57]} {[%emt
00:01:27]} a5 {[%clk 01:24:12]} {[%emt 00:07:11]} 7. c3 {[%clk 01:26:57]}
{[%emt 00:00:30]} axb4 {[%clk 01:15:54]} {[%emt 00:08:49]} 8. cxb4 {[%clk
01:27:14]} {[%emt 00:00:12]} b6 {[%clk 01:14:23]} {[%emt 00:02:01]} 9. c6
{[%clk 01:10:03]} {[%emt 00:17:41]} Bxb4+ {[%clk 01:13:25]} {[%emt 00:01:28]}
10. Nd2 {[%clk 01:09:27]} {[%emt 00:01:05]} Nxe5 {[%clk 01:06:02]} {[%emt
00:07:54]} 11. Bb5 {[%clk 01:08:46]} {[%emt 00:01:10]} Qc7 {[%clk 01:05:53]}
{[%emt 00:00:40]} 12. Ngf3 {[%clk 01:04:28]} {[%emt 00:04:47]} Ne7 {[%clk
00:57:35]} {[%emt 00:08:49]} 13. Nxe5 {[%clk 01:00:40]} {[%emt 00:04:18]} Qxe5
{[%clk 00:57:57]} {[%emt 00:00:09]} 14. c7+ {[%clk 00:50:20]} {[%emt 00:10:49]}
Kf8 {[%clk 00:52:13]} {[%emt 00:06:14]} 15. Rb1 {[%clk 00:39:40]} {[%emt
00:11:11]} d4 {[%clk 00:45:44]} {[%emt 00:06:59]} 16. Rxb4 {[%clk 00:39:28]}
{[%emt 00:00:42]} dxe3 {[%clk 00:45:58]} {[%emt 00:00:16]} 17. Nf3 {[%clk
00:31:13]} {[%emt 00:08:43]} Qc3+ {[%clk 00:38:46]} {[%emt 00:07:43]} 18. Kf1
{[%clk 00:31:33]} {[%emt 00:00:09]} Nd5 {[%clk 00:38:03]} {[%emt 00:01:15]} 19.
Rb3 {[%clk 00:30:12]} {[%emt 00:01:50]} Qxc7 {[%clk 00:36:56]} {[%emt
00:01:37]} 20. a4 {[%clk 00:27:19]} {[%emt 00:03:23]} Ba6 {[%clk 00:29:58]}
{[%emt 00:07:28]} 21. fxe3 {[%clk 00:24:09]} {[%emt 00:03:39]} Bxb5+ {[%clk
00:30:04]} {[%emt 00:00:24]} 22. axb5 {[%clk 00:24:25]} {[%emt 00:00:14]} Qc4+
{[%clk 00:28:27]} {[%emt 00:02:08]} 23. Kg1 {[%clk 00:23:44]} {[%emt 00:01:10]}
f6 {[%clk 00:17:44]} {[%emt 00:11:13]} 24. h4 {[%clk 00:22:22]} {[%emt
00:01:52]} Kf7 {[%clk 00:15:20]} {[%emt 00:02:54]} 25. Kh2 {[%clk 00:21:44]}
{[%emt 00:01:09]} Rhd8 {[%clk 00:14:06]} {[%emt 00:01:43]} 26. Rf1 {[%clk
00:20:28]} {[%emt 00:01:46]} Kg8 {[%clk 00:14:05]} {[%emt 00:00:32]} 27. Rd3
{[%clk 00:19:57]} {[%emt 00:01:01]} Qc7+ {[%clk 00:13:34]} {[%emt 00:01:02]} 28.
Kh3 {[%clk 00:17:46]} {[%emt 00:02:40]} Nxe3 {[%clk 00:13:24]} {[%emt
00:00:40]} 29. Qc1 {[%clk 00:17:36]} {[%emt 00:00:40]} Qxc1 {[%clk 00:09:40]}
{[%emt 00:04:15]} 30. Rxd8+ {[%clk 00:17:56]} {[%emt 00:00:09]} Rxd8 {[%clk
00:10:08]} {[%emt 00:00:02]} 31. Rxc1 {[%clk 00:18:13]} {[%emt 00:00:13]} Rd5
{[%clk 00:08:10]} {[%emt 00:02:27]} 32. Rc6 {[%clk 00:18:15]} {[%emt 00:00:28]}
Rxb5 {[%clk 00:08:22]} {[%emt 00:00:19]} 33. Rxe6 {[%clk 00:18:30]} {[%emt
00:00:15]} Nd5 {[%clk 00:07:47]} {[%emt 00:01:06]} 34. Rd6 {[%emt 00:01:45]} h5
{[%clk 00:07:05]} 35. Nd4 {[%clk 00:17:51]} {[%emt 00:01:05]} Rc5 {[%clk
00:02:02]} {[%emt 00:05:34]} 36. Rd7 {[%clk 00:17:34]} {[%emt 00:00:46]} Rc3+
{[%clk 00:02:05]} {[%emt 00:00:27]} 37. Kh2 {[%clk 00:17:58]} {[%emt 00:00:07]}
Ne3 {[%clk 00:01:50]} {[%emt 00:00:44]} 38. Nf3 {[%clk 00:10:45]} {[%emt
00:07:42]} Ng4+ {[%clk 00:01:58]} {[%emt 00:00:23]} 39. Kg3 {[%clk 00:10:14]}
{[%emt 00:01:01]} Ne5 {[%clk 00:02:04]} {[%emt 00:00:23]} 40. Rb7 {[%clk
00:09:35]} {[%emt 00:01:10]} Nxf3 {[%clk 00:02:08]} {[%emt 00:00:26]} 41. gxf3
{[%clk 00:09:56]} {[%emt 00:00:09]} Rb3 {[%clk 00:00:57]} {[%emt 00:01:41]} 42.
Kf4 {[%clk 00:06:18]} {[%emt 00:04:07]} Kh7 {[%clk 00:00:56]} {[%emt 00:00:31]}
43. Rc7 {[%clk 00:05:05]} {[%emt 00:01:44]} Kh6 {[%clk 00:30:13]} {[%emt
00:01:13]} 44. Rc6 {[%clk 00:33:18]} {[%emt 00:02:17]} Kg6 {[%clk 00:29:17]}
{[%emt 00:01:26]} 45. Rc7 {[%clk 00:33:03]} {[%emt 00:00:46]} Rb4+ {[%clk
00:26:22]} {[%emt 00:03:25]} 46. Kg3 {[%clk 00:33:21]} {[%emt 00:00:11]} b5
{[%clk 00:24:45]} {[%emt 00:02:07]} 47. Rb7 {[%clk 00:33:07]} {[%emt 00:00:44]}
Rb1 {[%clk 00:25:04]} {[%emt 00:00:11]} 48. Kf4 {[%clk 00:30:43]} {[%emt
00:02:54]} b4 {[%clk 00:24:53]} {[%emt 00:00:42]} 49. Rb5 {[%clk 00:29:46]}
{[%emt 00:01:26]} b3 {[%clk 00:24:57]} {[%emt 00:00:27]} 50. Kg3 {[%clk
00:30:00]} {[%emt 00:00:15]} b2 {[%clk 00:24:53]} {[%emt 00:00:34]} 51. Kg2
{[%clk 00:30:16]} {[%emt 00:00:14]} Kf7 {[%clk 00:25:06]} {[%emt 00:00:17]} 52.
f4 {[%clk 00:28:53]} {[%emt 00:01:53]} Ke6 {[%clk 00:25:11]} {[%emt 00:00:26]}
53. f5+ {[%clk 00:28:06]} {[%emt 00:01:16]} Kd6 {[%clk 00:25:31]} {[%emt
00:00:10]} 54. Rb7 {[%clk 00:26:31]} {[%emt 00:02:05]} Ke5 {[%clk 00:25:31]}
{[%emt 00:00:30]} 55. Rb5+ {[%clk 00:26:05]} {[%emt 00:00:56]} Kd4 {[%clk
00:25:53]} {[%emt 00:00:08]} 56. Rb7 {[%clk 00:25:59]} {[%emt 00:00:36]} Ke4
{[%clk 00:24:50]} {[%emt 00:01:32]} 57. Rb5 {[%clk 00:26:19]} {[%emt 00:00:11]}
Kf4 {[%clk 00:25:12]} {[%emt 00:00:08]} 58. Kh2 {[%clk 00:26:22]} {[%emt
00:00:27]} Kg4 {[%clk 00:25:22]} {[%emt 00:00:19]} 59. Kg2 {[%clk 00:26:47]}
{[%emt 00:00:05]} Kxh4 {[%clk 00:25:44]} {[%emt 00:00:08]} 60. Kh2 {[%clk
00:26:58]} {[%emt 00:00:20]} Kg4 {[%clk 00:25:59]} {[%emt 00:00:15]} 0-1